bitfinex/quotes_SOLUSD_20240917
["timestamp","ask_amount","ask_price","bid_price","bid_amount"]
[1726579937333,0.2551949,132.88,132.86,7.5265]
[1726579937834,0.2551949,132.88,132.86,9.03078125]
[1726579938505,0.2551949,132.88,132.85,18.8176]
[1726579939139,0.2551949,132.88,132.86,9.03175713]
[1726579939310,0.2551949,132.88,132.86,7.5266]
[1726579939820,0.2551949,132.88,132.86,9.03175694]
[1726579940032,0.2551949,132.88,132.87,7.5261]
[1726579940711,0.2551949,132.88,132.85,18.8176]
[1726579940909,0.2551949,132.88,132.85,26.3443]
[1726579941812,0.2551949,132.88,132.86,7.5266]
[1726579942957,0.2551949,132.88,132.87,9.03124808]
[1726579943713,0.2551949,132.88,132.87,7.5261]
[1726579945838,0.2551949,132.88,132.87,28.93408408]
[1726579948926,0.2551949,132.88,132.87,27.5261]
[1726579949127,0.2551949,132.88,132.87,7.5261]
[1726579951948,0.2551949,132.88,132.87,27.5261]
[1726579952433,0.2551949,132.88,132.87,72.05311027]
[1726579952955,0.2551949,132.88,132.87,70.55034675]
[1726579953527,0.2551949,132.92,132.91,83.9529]
[1726579954028,0.2551949,132.92,132.91,109.23080515]
[1726579954968,0.2551949,132.92,132.91,109.48178515]
[1726579955262,0.2551949,132.92,132.91,107.729784]
[1726579956836,0.2551949,132.92,132.91,124.196884]
[1726579957151,0.2551949,132.92,132.91,100.42]
[1726579957348,0.2551949,132.96,132.91,100.42]
[1726579957349,0.2551949,132.96,132.95,26.3256]
[1726579957548,0.2551949,132.96,132.95,65.44747275]
[1726579958055,0.2551949,132.96,132.95,89.22435675]
[1726579960150,0.2551949,132.96,132.95,70.102484]
[1726579960353,0.2551949,132.96,132.95,70.353464]
[1726579961331,0.2551949,132.96,132.95,100.82477611]
[1726579963059,0.2551949,132.96,132.95,70.102484]
[1726579963253,0.2551949,132.96,132.95,46.3256]
[1726579963541,0.2551949,132.96,132.95,70.102484]
[1726579963958,0.2551949,132.96,132.95,71.60327685]
[1726579964159,0.2551949,132.96,132.95,70.102484]
[1726579966271,0.2551949,132.96,132.95,46.3256]
[1726579966573,0.2551949,132.96,132.95,70.102484]
[1726579968342,0.2551949,132.96,132.95,46.3256]
[1726579968543,0.2551949,132.96,132.95,26.3256]
[1726579969638,0.2551949,132.96,132.92,18.8081]
[1726579970071,0.2551949,132.96,132.94,7.522]
[1726579970244,0.2551949,132.96,132.92,18.8081]
[1726579970245,0.2551949,132.96,132.93,7.5225]
[1726579971748,0.2551949,132.96,132.95,7.5216]
[1726579972357,0.2551949,132.96,132.92,18.8081]
[1726579972568,0.2551949,132.96,132.93,7.5226]
[1726579972946,0.2551949,132.96,132.94,7.5221]
[1726579973253,0.2551949,132.96,132.95,7.5216]
[1726579974474,0.2551949,132.96,132.95,9.02554047]
[1726579974769,0.2551949,132.96,132.95,7.5216]
[1726579976480,0.2551949,132.96,132.95,51.298484]
[1726579976882,0.2551949,132.96,132.95,27.5216]
[1726579977251,0.2551949,132.96,132.95,7.5216]
[1726579979093,0.2551949,132.96,132.95,51.93224767]
[1726579979371,0.2551949,132.96,132.95,51.298484]
[1726579980276,0.2551949,132.96,132.95,27.5216]
[1726579983466,0.2551949,132.96,132.95,7.5216]
[1726579983988,6.5747949,132.96,132.94,18.8048]
[1726579984561,6.5747949,132.96,132.93,7.5223]
[1726579984757,6.5747949,132.96,132.94,7.522]
[1726579985257,0.2551949,132.96,132.95,7.5216]
[1726579987570,0.2551949,132.96,132.94,7.5219]
[1726579988097,0.2551949,132.96,132.93,26.3289]
[1726579989693,23.90788,132.95,132.9,18.81]
[1726579989993,0.12549,132.93,132.9,18.81]
[1726579990788,0.12549,132.93,132.9,26.3343]
[1726579990986,0.25098,132.93,132.87,18.8144]
[1726579991191,0.12549,132.93,132.89,26.3369]
[1726579991686,7.64819,132.93,132.89,18.8121]
[1726579992273,0.12549,132.93,132.89,26.3371]
[1726579993480,0.12549,132.92,132.89,26.3371]
[1726579994195,0.12549,132.91,132.86,18.8158]
[1726579994380,0.12549,132.91,132.88,7.5255]
[1726579995904,0.12549,132.91,132.87,7.5259]
[1726579996092,6.87488,132.89,132.84,7.81047311]
[1726579996894,0.25098,132.87,132.84,7.81097311]
[1726579997097,0.25098,132.87,132.84,0.28327311]
[1726579997590,0.25098,132.86,132.84,0.28327311]
[1726579997794,0.12549,132.86,132.84,0.28327311]
[1726579998176,0.12549,132.88,132.84,0.28327311]
[1726579998378,0.12549,132.88,132.85,7.5268]
[1726579998576,0.12549,132.87,132.85,7.5268]
[1726579998772,0.12549,132.87,132.84,0.28327311]
[1726579999683,0.25098,132.88,132.84,0.28327311]
[1726579999878,0.25098,132.88,132.84,7.81067311]
[1726580000117,0.12549,132.88,132.84,19.10237311]
[1726580000685,0.12549,132.88,132.85,7.5271]
[1726580001380,0.25098,132.88,132.84,26.62977311]
[1726580001582,0.25098,132.88,132.84,0.28327311]
[1726580001814,24.027864,132.88,132.84,0.28327311]
[1726580002607,7.77818,132.85,132.84,0.28327311]
[1726580003310,0.25098,132.85,132.84,0.28327311]
[1726580003809,53.589064,132.85,132.84,0.28327311]
[1726580004006,46.061864,132.85,132.84,0.28327311]
[1726580006112,53.589064,132.85,132.84,0.28327311]
[1726580006607,22.28498,132.85,132.84,0.28327311]
[1726580006806,22.15949,132.85,132.84,0.28327311]
[1726580007026,6.41319,132.85,132.84,0.28327311]
[1726580008195,21.0801,132.88,132.84,7.81107311]
[1726580008924,21.0801,132.88,132.84,0.28327311]
[1726580009208,28.6057,132.88,132.84,0.28327311]
[1726580009590,31.553964,132.87,132.84,0.28327311]
[1726580009815,0.25098,132.85,132.84,0.28327311]
[1726580010001,31.555064,132.85,132.84,0.28327311]
[1726580012923,51.555064,132.85,132.84,0.28327311]
[1726580013089,46.591464,132.83,132.82,0.2551949]
[1726580013612,20.25098,132.82,132.78,0.2551949]
[1726580013792,37.890864,132.79,132.78,0.2551949]
[1726580013992,57.890864,132.79,132.78,0.2551949]
[1726580014208,50.360264,132.79,132.78,0.2551949]
[1726580014417,30.360264,132.79,132.78,0.2551949]
[1726580015910,30.360264,132.79,132.75,0.2551949]
[1726580015911,0.25098,132.78,132.75,0.2551949]
[1726580016114,24.027864,132.78,132.75,0.2551949]
[1726580016900,15.2196,132.77,132.75,0.2551949]
[1726580017100,24.027864,132.76,132.75,0.2551949]
[1726580017318,51.560164,132.76,132.75,0.2551949]
[1726580017508,101.560164,132.76,132.75,0.2551949]
[1726580017703,101.560164,132.76,132.71,0.2551949]
[1726580017704,24.027864,132.74,132.71,0.2551949]
[1726580018010,81.561464,132.74,132.71,0.2551949]
[1726580018229,24.027864,132.72,132.71,0.2551949]
[1726580018517,101.562464,132.72,132.71,0.2551949]
[1726580019327,101.562464,132.72,132.67,0.2551949]
[1726580019328,24.027864,132.69,132.67,0.2551949]
[1726580021093,24.027864,132.69,132.66,0.2735606]
[1726580021823,24.027864,132.7,132.66,0.2735606]
[1726580022117,30.215764,132.68,132.66,0.2735606]
[1726580023001,37.752664,132.68,132.66,0.2735606]
[1726580023902,81.565264,132.67,132.66,0.2735606]
[1726580024104,81.565264,132.67,132.61,0.3366668]
[1726580024105,44.027864,132.66,132.61,0.3366668]
[1726580024302,24.027864,132.64,132.61,0.3366668]
[1726580024511,31.568164,132.62,132.61,0.3366668]
[1726580024698,58.194364,132.62,132.61,0.3366668]
[1726580025005,58.194364,132.62,132.56,0.3366668]
[1726580025006,51.569164,132.61,132.56,0.3366668]
[1726580025212,7.5415,132.6,132.56,0.3366668]
[1726580025566,94.027864,132.61,132.56,0.3366668]
[1726580025567,20.0,132.58,132.56,0.3366668]
[1726580025692,24.027864,132.57,132.56,0.3366668]
[1726580027928,0.25098,132.57,132.56,0.3366668]
[1726580028499,0.12549,132.57,132.56,0.3366668]
[1726580031036,0.12549,132.57,132.56,7.8803668]
[1726580031338,20.0,132.61,132.58,7.5425]
[1726580031634,6.6262,132.62,132.57,26.4006]
[1726580031812,14.1666,132.62,132.57,18.8575]
[1726580032011,6.6262,132.62,132.57,26.4002]
[1726580032637,0.12549,132.61,132.57,26.4002]
[1726580032820,0.25098,132.61,132.57,26.4002]
[1726580033139,6.6262,132.62,132.57,18.8575]
[1726580033309,50.0,132.65,132.57,18.8575]
[1726580033515,6.5989,132.66,132.59,18.8545]
[1726580034013,6.5989,132.66,132.61,7.5406]
[1726580034615,27.5388,132.65,132.59,18.8545]
[1726580034811,20.0,132.65,132.59,18.8545]
[1726580035033,20.0,132.65,132.6,7.5414]
[1726580035417,0.12549,132.64,132.6,7.5414]
[1726580035620,23.902374,132.64,132.6,7.5414]
[1726580035937,0.12549,132.63,132.6,7.5414]
[1726580036142,0.25098,132.64,132.6,7.5414]
[1726580036335,0.25098,132.64,132.61,7.5408]
[1726580036731,24.027864,132.65,132.61,7.5408]
[1726580037229,24.027864,132.66,132.62,7.5401]
[1726580037613,24.027864,132.66,132.61,26.3925]
[1726580038043,24.027864,132.66,132.6,7.5412]
[1726580038347,27.5386,132.65,132.6,7.5412]
[1726580038515,27.5386,132.65,132.58,18.8554]
[1726580038516,31.567064,132.64,132.58,26.3978]
[1726580038721,31.567064,132.64,132.59,7.542]
[1726580038722,24.027864,132.64,132.59,7.542]
[1726580038940,31.567064,132.64,132.59,7.542]
[1726580039144,24.027864,132.64,132.59,7.542]
[1726580039751,0.25098,132.64,132.6,7.5413]
[1726580039924,0.25098,132.64,132.61,7.5408]
[1726580040125,20.0,132.65,132.6,18.8532]
[1726580040126,0.25098,132.65,132.62,7.5402]
[1726580040320,24.027864,132.66,132.61,7.5407]
[1726580040523,7.5386,132.65,132.6,18.8532]
[1726580040735,0.25098,132.64,132.59,7.5418]
[1726580041456,23.902374,132.62,132.56,7.8801668]
[1726580041624,50.534064,132.62,132.56,0.3366668]
[1726580041927,31.443974,132.6,132.56,0.3366668]
[1726580042134,31.569464,132.6,132.56,0.3366668]
[1726580042333,24.027864,132.6,132.56,0.3366668]
[1726580042639,0.25098,132.61,132.56,0.3366668]
[1726580042843,0.25098,132.61,132.57,18.8573]
[1726580043231,31.568864,132.61,132.56,0.3366668]
[1726580043937,7.5416,132.6,132.56,0.3366668]
[1726580044149,31.568864,132.61,132.56,0.3366668]
[1726580044525,81.568864,132.61,132.56,0.3366668]
[1726580044722,74.027864,132.61,132.56,0.3366668]
[1726580044926,7.5425,132.59,132.56,0.3366668]
[1726580045225,7.5416,132.6,132.56,0.3366668]
[1726580045537,24.027864,132.61,132.56,0.3366668]
[1726580045741,7.5416,132.6,132.56,0.3366668]
[1726580045942,0.25098,132.59,132.56,0.3366668]
[1726580046644,7.79318,132.59,132.56,0.3366668]
[1726580046855,0.25098,132.59,132.56,0.3366668]
[1726580047348,24.027864,132.59,132.56,0.3366668]
[1726580047849,31.569964,132.59,132.56,0.3366668]
[1726580048039,0.25098,132.57,132.56,0.3366668]
[1726580048344,24.027864,132.57,132.56,0.3366668]
[1726580048547,24.027864,132.57,132.51,0.3366668]
[1726580048548,0.25098,132.54,132.51,0.3366668]
[1726580049118,24.027864,132.54,132.51,0.3366668]
[1726580049545,31.572864,132.54,132.51,0.3366668]
[1726580049744,7.79698,132.52,132.51,0.3366668]
[1726580050251,0.25098,132.52,132.51,0.3366668]
[1726580050849,31.573864,132.52,132.51,0.3366668]
[1726580051150,24.027864,132.52,132.51,0.3366668]
[1726580051358,0.25098,132.52,132.51,0.3366668]
[1726580051643,24.027864,132.52,132.51,0.3366668]
[1726580051825,44.027864,132.52,132.51,0.3366668]
[1726580052148,20.25098,132.52,132.51,0.3366668]
[1726580052326,0.25098,132.52,132.51,0.3366668]
[1726580053445,29.5958,132.58,132.51,7.8831668]
[1726580053651,22.0528,132.58,132.52,7.5458]
[1726580054027,29.5955,132.58,132.51,7.8830668]
[1726580054239,22.0528,132.58,132.51,7.8830668]
[1726580054461,29.5956,132.58,132.51,7.8830668]
[1726580054928,27.5433,132.57,132.51,0.3366668]
[1726580055537,0.12549,132.56,132.51,7.8831668]
[1726580055745,20.0,132.57,132.51,7.8831668]
[1726580055944,22.9453,132.61,132.54,7.5448]
[1726580056143,72.9453,132.61,132.54,7.5448]
[1726580056446,30.4863,132.61,132.54,7.5448]
[1726580056849,6.3802,132.64,132.51,44.1135508]
[1726580057046,6.3802,132.64,132.58,7.5421]
[1726580057253,6.3802,132.64,132.56,15.6361]
[1726580057551,7.538,132.66,132.59,7.5419]
[1726580057862,50.0,132.67,132.6,7.5413]
[1726580058052,30.2678,132.68,132.6,7.5413]
[1726580058250,13.9176,132.68,132.61,7.5405]
[1726580058431,63.9174,132.68,132.61,7.5405]
[1726580058636,56.3802,132.68,132.6,26.394]
[1726580058946,7.5388,132.65,132.58,7.5421]
[1726580059253,20.0,132.65,132.56,53.3542]
[1726580059559,27.539,132.65,132.58,7.5425]
[1726580059937,7.5396,132.64,132.57,7.5431]
[1726580060442,0.25098,132.63,132.57,7.5431]
[1726580060953,20.25098,132.63,132.57,7.5431]
[1726580061457,27.79078,132.63,132.56,42.0388]
[1726580062030,31.317284,132.62,132.56,34.4953]
[1726580062231,0.25098,132.61,132.57,7.5431]
[1726580063074,0.25098,132.61,132.56,42.0389]
[1726580063832,20.25098,132.61,132.56,15.6361]
[1726580064030,20.25098,132.61,132.55,7.5442]
[1726580064235,20.25098,132.59,132.53,42.5696]
[1726580064462,7.79348,132.59,132.53,35.0243]
[1726580065234,7.79348,132.59,132.53,42.5696]
[1726580065738,7.79348,132.59,132.51,0.3366668]
[1726580065739,0.25098,132.57,132.52,7.5458]
[1726580065945,0.25098,132.57,132.53,5.61293905]
[1726580066133,0.25098,132.57,132.52,7.5458]
[1726580066340,0.25098,132.57,132.53,5.61346092]
[1726580066553,0.25098,132.57,132.52,7.5458]
[1726580066758,0.25098,132.57,132.53,5.61333374]
[1726580066963,0.25098,132.57,132.52,7.5458]
[1726580067171,27.79428,132.57,132.53,5.61276973]
[1726580067460,0.25098,132.55,132.51,0.3366668]
[1726580067650,7.79538,132.55,132.51,0.3366668]
[1726580068038,0.25098,132.53,132.51,0.3366668]
[1726580068640,0.25098,132.52,132.51,0.3366668]
[1726580069166,23.776884,132.58,132.51,0.3366668]
[1726580069376,41.3119,132.61,132.51,0.3366668]
[1726580069377,30.0004,132.61,132.54,7.5448]
[1726580069541,22.459,132.61,132.54,18.8622]
[1726580069861,22.459,132.61,132.51,0.3366668]
[1726580069862,7.5425,132.59,132.52,7.5455]
[1726580070066,7.5425,132.59,132.53,5.61263109]
[1726580070260,7.5425,132.59,132.52,7.5459]
[1726580070582,7.5426,132.58,132.53,5.61233502]
[1726580070762,0.12549,132.57,132.52,7.5459]
[1726580071469,7.66869,132.57,132.51,26.7492668]
[1726580071637,7.66869,132.57,132.51,0.3366668]
[1726580071638,0.12549,132.55,132.51,0.3366668]
[1726580071836,0.12549,132.54,132.51,0.3366668]
[1726580072844,0.25098,132.54,132.51,0.3366668]
[1726580073242,7.79588,132.54,132.51,0.3366668]
[1726580073459,31.572764,132.54,132.51,0.3366668]
[1726580074148,0.25098,132.52,132.51,0.3366668]
[1726580077951,7.79698,132.52,132.51,0.3366668]
[1726580078559,31.573864,132.52,132.51,0.3366668]
[1726580079270,31.573864,132.52,132.45,28.87527977]
[1726580079271,0.25098,132.5,132.45,0.3366668]
[1726580079773,23.776884,132.51,132.45,0.3366668]
[1726580079774,0.25098,132.48,132.45,0.3366668]
[1726580080142,0.25098,132.49,132.45,0.3366668]
[1726580080347,0.25098,132.5,132.45,7.8864668]
[1726580080881,22.2789,132.54,132.45,19.1193065]
[1726580081050,7.546,132.52,132.46,7.5493]
[1726580082260,7.67209,132.51,132.46,7.5493]
[1726580082462,7.67279,132.5,132.45,19.1193065]
[1726580082673,0.12549,132.49,132.45,19.1193065]
[1726580083359,0.12549,132.48,132.45,0.2451065]
[1726580083870,0.12549,132.48,132.45,7.7950065]
[1726580084075,0.12549,132.48,132.45,0.2451065]
[1726580086553,7.67379,132.48,132.45,0.2451065]
[1726580086759,0.12549,132.47,132.45,0.2451065]
[1726580088780,0.12549,132.46,132.45,0.2451065]
[1726580089681,7.80038,132.46,132.45,0.2451065]
[1726580090106,31.577264,132.46,132.45,0.2451065]
[1726580090375,31.577264,132.46,132.42,0.3376345]
[1726580090376,31.578964,132.43,132.42,0.3376345]
[1726580091281,7.80208,132.43,132.42,0.3376345]
[1726580091864,31.578964,132.43,132.42,0.3376345]
[1726580092065,7.80208,132.43,132.42,0.3376345]
[1726580092278,7.80208,132.43,132.36,0.3376345]
[1726580092279,24.027864,132.42,132.36,0.3376345]
[1726580092473,0.25098,132.4,132.36,7.8927345]
[1726580092877,0.25098,132.41,132.37,7.5544]
[1726580093183,0.25098,132.42,132.38,7.5539]
[1726580093558,0.25098,132.42,132.37,7.5544]
[1726580093987,7.80268,132.42,132.37,7.5544]
[1726580094281,7.80268,132.42,132.36,26.7799345]
[1726580094583,0.25098,132.4,132.36,26.7800345]
[1726580094784,7.80388,132.4,132.36,0.3376345]
[1726580094982,0.25098,132.38,132.36,0.3376345]
[1726580095191,7.80548,132.37,132.36,0.3376345]
[1726580095693,31.582364,132.37,132.36,0.3376345]
[1726580095855,51.582364,132.37,132.36,0.3376345]
[1726580097288,31.582364,132.37,132.36,0.3376345]
[1726580099587,0.25098,132.37,132.36,0.3376345]
[1726580100102,7.67999,132.37,132.36,0.3376345]
[1726580100297,0.12549,132.37,132.36,0.3376345]
[1726580100474,7.67999,132.37,132.36,0.3376345]
[1726580101190,7.5561,132.35,132.31,0.3376345]
[1726580101686,0.25098,132.34,132.31,7.8955345]
[1726580101873,0.25098,132.34,132.31,19.2324345]
[1726580102068,75.4567786,132.42,132.31,38.1251345]
[1726580102294,56.6186,132.43,132.31,38.1251345]
[1726580102500,56.6186,132.43,132.35,18.8889]
[1726580102996,7.5529,132.4,132.35,26.4442]
[1726580103172,7.5534,132.39,132.34,7.5561]
[1726580103584,7.554,132.38,132.33,7.5566]
[1726580103788,0.25098,132.36,132.32,18.8924]
[1726580103986,0.25098,132.37,132.33,7.5568]
[1726580104191,0.25098,132.37,132.34,7.5562]
[1726580104399,68.881,132.41,132.36,7.5551]
[1726580104400,7.5523,132.41,132.36,7.5551]
[1726580104601,65.6178786,132.43,132.37,7.5543]
[1726580104602,7.5517,132.42,132.37,7.5543]
[1726580104912,7.5523,132.41,132.36,26.4424]
[1726580105384,7.5528,132.4,132.34,7.5558]
[1726580105578,7.5528,132.4,132.32,16.4579]
[1726580105579,56.6186,132.43,132.35,18.8889]
[1726580105887,14.1702,132.43,132.35,18.8889]
[1726580106093,6.6186,132.43,132.38,7.554]
[1726580106606,7.5518,132.42,132.37,26.4399]
[1726580107089,51.578964,132.44,132.38,7.5539]
[1726580107290,0.25098,132.42,132.37,26.4399]
[1726580107809,7.80318,132.42,132.37,18.8855]
[1726580108119,0.25098,132.42,132.37,18.8855]
[1726580108402,0.25098,132.42,132.37,26.44]
[1726580108598,7.80308,132.42,132.37,18.8855]
[1726580108811,7.5523,132.41,132.37,18.8855]
[1726580109103,0.25098,132.42,132.36,26.4425]
[1726580109104,7.80278,132.42,132.36,26.4425]
[1726580109411,0.25098,132.39,132.34,7.5561]
[1726580109596,0.25098,132.39,132.32,22.667]
[1726580109902,0.25098,132.39,132.36,7.5546]
[1726580110101,0.12549,132.39,132.36,7.5546]
[1726580110477,7.80388,132.4,132.35,26.4445]
[1726580110690,7.80388,132.4,132.35,26.4446]
[1726580111685,7.80388,132.4,132.35,18.889]
[1726580112079,7.80388,132.4,132.35,26.4445]
[1726580112305,0.25098,132.4,132.36,7.555]
[1726580112486,7.5501,132.45,132.4,7.5527]
[1726580112684,7.5483,132.48,132.42,7.5512]
[1726580112888,7.549,132.47,132.41,7.5521]
[1726580113092,7.549,132.47,132.41,26.4323]
[1726580113304,0.3376345,132.49,132.4,7.5527]
[1726580113481,7.55,132.45,132.39,7.5533]
[1726580113678,50.0,132.46,132.37,6.3948]
[1726580113917,50.0,132.43,132.35,22.5664]
[1726580114204,7.5518,132.42,132.36,26.4423]
[1726580114410,0.25098,132.41,132.36,26.4423]
[1726580114788,0.25098,132.43,132.39,7.5534]
[1726580114995,6.0308,132.47,132.36,20.0]
[1726580115183,6.0308,132.47,132.4,18.8813]
[1726580116419,0.25098,132.45,132.4,26.4339]
[1726580116789,0.12549,132.45,132.4,26.4339]
[1726580117888,0.12549,132.45,132.41,7.5522]
[1726580118085,0.25098,132.45,132.4,26.4339]
[1726580118507,0.25098,132.44,132.4,26.4339]
[1726580118714,0.25098,132.44,132.37,18.8855]
[1726580118896,0.25098,132.44,132.4,7.5528]
[1726580119208,0.25098,132.44,132.41,7.5521]
[1726580119599,0.25098,132.44,132.4,7.5527]
[1726580120186,7.80168,132.44,132.39,18.8826]
[1726580120386,0.25098,132.44,132.39,18.8826]
[1726580121309,0.12549,132.44,132.41,18.8804]
[1726580122598,0.12549,132.44,132.38,18.8839]
[1726580122599,0.12549,132.43,132.38,18.8839]
[1726580122827,0.12549,132.42,132.38,18.8839]
[1726580123153,0.12549,132.43,132.38,18.8839]
[1726580123303,0.12549,132.42,132.38,18.8839]
[1726580123506,0.12549,132.42,132.35,15.0109]
[1726580123507,0.12549,132.42,132.35,41.4546]
[1726580123809,0.12549,132.41,132.35,33.8991]
[1726580124013,0.12549,132.4,132.35,33.8991]
[1726580124323,0.12549,132.4,132.31,24.3119345]
[1726580124324,7.5551,132.36,132.31,24.3119345]
[1726580124520,0.25098,132.35,132.31,16.7541345]
[1726580124896,0.25098,132.35,132.32,7.5571]
[1726580125097,0.25098,132.36,132.31,24.3120345]
[1726580125907,0.12549,132.36,132.32,7.5574]
[1726580126092,0.25098,132.37,132.32,7.5574]
[1726580126293,0.25098,132.37,132.34,7.556]
[1726580126518,0.12549,132.37,132.35,7.5556]
[1726580127228,0.12549,132.37,132.34,7.5562]
[1726580127405,0.12549,132.37,132.35,7.5557]
[1726580127723,6.5888,132.44,132.34,37.16877609]
[1726580127926,6.5888,132.44,132.36,15.7555]
[1726580128139,22.7507,132.47,132.4,7.5527]
[1726580128424,30.3,132.47,132.4,7.5527]
[1726580128605,30.3,132.47,132.41,7.5519]
[1726580129903,0.25098,132.46,132.41,7.5519]
[1726580130097,0.12549,132.46,132.42,7.5516]
[1726580130406,0.12549,132.46,132.41,7.5522]
[1726580130600,7.67489,132.46,132.4,7.5527]
[1726580131407,0.12549,132.45,132.4,7.5527]
[1726580132127,0.12549,132.44,132.39,18.8825]
[1726580132331,0.12549,132.43,132.36,34.6428]
[1726580132504,7.67699,132.43,132.37,7.5545]
[1726580132813,0.12549,132.42,132.36,34.6428]
[1726580133133,0.12549,132.41,132.36,34.6428]
[1726580133426,0.12549,132.41,132.38,7.5538]
[1726580134636,0.12549,132.42,132.39,7.5532]
[1726580134859,0.12549,132.43,132.39,7.5532]
[1726580135134,0.25098,132.44,132.39,7.5532]
[1726580135337,0.12549,132.43,132.38,26.4383]
[1726580135537,0.25098,132.43,132.38,26.4383]
[1726580135918,7.80208,132.43,132.38,26.4383]
[1726580136210,0.25098,132.43,132.39,7.5532]
[1726580137047,0.25098,132.43,132.39,9.06369911]
[1726580137222,0.25098,132.43,132.4,7.5527]
[1726580137416,0.25098,132.43,132.39,7.5532]
[1726580137615,7.80228,132.43,132.38,26.4382]
[1726580138218,0.25098,132.41,132.37,7.5543]
[1726580138427,7.80328,132.41,132.36,15.7555]
[1726580138720,0.25098,132.41,132.37,7.5543]
[1726580139219,0.25098,132.41,132.38,7.5538]
[1726580139621,0.25098,132.41,132.37,18.886]
[1726580139918,0.25098,132.41,132.39,7.5528]
[1726580140223,0.12549,132.41,132.4,7.5528]
[1726580140425,0.12549,132.41,132.39,26.4364]
[1726580140623,0.12549,132.41,132.36,34.6424]
[1726580140818,7.5524,132.41,132.36,42.1975]
[1726580141019,7.5524,132.41,132.36,26.442]
[1726580141324,43.776884,132.43,132.35,0.0915309]
[1726580141638,7.80498,132.38,132.35,0.0915309]
[1726580142039,0.25098,132.38,132.35,0.0915309]
[1726580143547,0.25098,132.38,132.35,7.6471309]
[1726580144447,29.8745,132.41,132.36,7.555]
[1726580144856,7.5528,132.4,132.36,7.555]
[1726580145350,29.8744,132.41,132.36,7.555]
[1726580145571,7.5529,132.4,132.35,26.5358309]
[1726580145851,0.25098,132.39,132.35,26.5358309]
[1726580146547,13.8097,132.41,132.35,18.9803309]
[1726580146737,13.8097,132.41,132.36,7.5549]
[1726580146935,6.2574,132.41,132.37,18.8858]
[1726580147138,6.2574,132.41,132.37,26.4401]
[1726580147334,13.8097,132.41,132.37,26.4401]
[1726580147946,6.2574,132.41,132.37,26.4401]
[1726580148129,0.25098,132.41,132.37,26.4401]
[1726580148544,0.25098,132.41,132.38,7.5538]
[1726580148940,0.25098,132.41,132.37,26.4399]
[1726580149137,7.80328,132.41,132.37,26.4399]
[1726580149348,0.25098,132.41,132.35,0.0915309]
[1726580149658,0.25098,132.38,132.35,0.0915309]
[1726580149852,0.25098,132.37,132.35,0.0915309]
[1726580150025,7.80588,132.37,132.35,0.0915309]
[1726580150229,7.5551,132.36,132.35,0.0915309]
[1726580150449,0.25098,132.36,132.35,0.0915309]
[1726580150749,7.80608,132.36,132.35,0.0915309]
[1726580152444,7.80608,132.36,132.35,0.0915309]
[1726580153737,31.582964,132.36,132.35,0.0915309]
[1726580153936,0.25098,132.32,132.3,0.3235094]
[1726580154136,7.80898,132.31,132.3,0.3235094]
[1726580154436,0.25098,132.31,132.3,0.3235094]
[1726580154637,0.12549,132.31,132.3,0.3235094]
[1726580154955,0.25098,132.34,132.3,0.3235094]
[1726580155460,0.25098,132.33,132.3,0.3235094]
[1726580156142,0.12549,132.33,132.3,0.3235094]
[1726580156337,0.25098,132.35,132.3,7.8819094]
[1726580157366,0.25098,132.35,132.3,0.3235094]
[1726580157537,0.25098,132.32,132.3,0.3235094]
[1726580158247,0.25098,132.33,132.3,0.3235094]
[1726580158950,0.12549,132.33,132.3,19.2190094]
[1726580159153,7.5529,132.4,132.35,7.5556]
[1726580159462,7.5529,132.4,132.34,26.4455]
[1726580159758,7.5529,132.4,132.35,7.5556]
[1726580160338,72.3631,132.42,132.36,7.555]
[1726580160339,7.5523,132.41,132.36,7.555]
[1726580160546,7.5526,132.41,132.36,7.555]
[1726580160960,7.5512,132.43,132.38,7.5539]
[1726580161144,40.2858,132.45,132.39,7.5533]